bitfinex/quotes_BTCUSD_20241201
["timestamp","ask_amount","ask_price","bid_price","bid_amount"]
[1733080025465,0.00190563,97337.0,97336.0,0.48513141]
[1733080025687,0.00290563,97337.0,97336.0,0.49113141]
[1733080026143,0.00190563,97337.0,97336.0,0.48513141]
[1733080026381,0.00290563,97337.0,97336.0,0.49513141]
[1733080026588,0.00290563,97337.0,97336.0,0.49313141]
[1733080026800,0.00290563,97337.0,97336.0,0.50213141]
[1733080027026,0.0017264,97386.0,97368.0,0.353406]
[1733080027282,0.0017264,97386.0,97368.0,0.48503702]
[1733080028384,0.00037837,97369.0,97368.0,0.48503702]
[1733080029064,0.00037837,97369.0,97368.0,0.48903702]
[1733080029312,0.00037837,97369.0,97368.0,0.49603702]
[1733080029776,0.0017264,97386.0,97384.0,0.01]
[1733080029998,0.0017264,97386.0,97384.0,0.48579447]
[1733080030251,0.0017274,97407.0,97388.0,0.043]
[1733080030484,0.0017274,97407.0,97388.0,0.1534113]
[1733080031877,0.0017274,97407.0,97388.0,0.1574113]
[1733080032293,0.0017274,97407.0,97388.0,0.1604113]
[1733080032717,0.0017274,97407.0,97388.0,0.1564113]
[1733080032939,0.0017274,97407.0,97388.0,0.1634113]
[1733080033416,0.0017274,97407.0,97388.0,0.2906113]
[1733080033631,0.0017274,97407.0,97388.0,0.28879431]
[1733080033851,0.0017274,97407.0,97388.0,0.28579431]
[1733080034288,0.0017274,97407.0,97388.0,0.28779431]
[1733080034736,0.0017274,97407.0,97388.0,0.28579431]
[1733080034942,0.0017274,97407.0,97388.0,0.27879431]
[1733080035165,0.0017274,97407.0,97388.0,0.28279431]
[1733080035382,0.0017274,97407.0,97388.0,0.29179431]
[1733080037218,0.0017274,97407.0,97388.0,2.06117824]
[1733080037440,0.0017274,97407.0,97388.0,2.0727404]
[1733080037441,0.0019264,97389.0,97388.0,2.0727404]
[1733080037648,0.0019264,97389.0,97388.0,2.0827404]
[1733080037864,0.0017274,97407.0,97406.0,0.352026]
[1733080038069,0.0017274,97407.0,97406.0,0.47787121]
[1733080038305,0.0017274,97407.0,97406.0,0.48310755]
[1733080039170,0.00232183,97407.0,97406.0,0.49110755]
[1733080039385,0.00232183,97407.0,97406.0,0.48310755]
[1733080039617,0.00232183,97407.0,97406.0,0.49210755]
[1733080039838,0.00232183,97407.0,97406.0,0.48310755]
[1733080040091,0.00232183,97407.0,97406.0,0.49310755]
[1733080040301,0.00232183,97407.0,97406.0,0.49110755]
[1733080040998,0.00232183,97407.0,97406.0,0.50110755]
[1733080041244,0.00232183,97407.0,97406.0,0.49110755]
[1733080041466,0.00232183,97407.0,97406.0,0.48310755]
[1733080041681,0.00232183,97407.0,97406.0,0.49710755]
[1733080041901,0.00232183,97407.0,97406.0,0.48910755]
[1733080042578,0.00232183,97407.0,97406.0,0.49810755]
[1733080044217,0.00232183,97407.0,97406.0,0.49210755]
[1733080044437,0.00232183,97407.0,97406.0,0.48310755]
[1733080044673,0.00232183,97407.0,97406.0,0.48410755]
[1733080045181,0.00232183,97407.0,97406.0,0.48310755]
[1733080045385,0.00232183,97407.0,97406.0,0.49210755]
[1733080045656,0.00232183,97407.0,97406.0,0.48310755]
[1733080045896,0.00232183,97407.0,97406.0,0.23956234]
[1733080046132,0.00232183,97407.0,97406.0,0.03423634]
[1733080046348,0.00232183,97407.0,97406.0,0.04023634]
[1733080046561,0.00232183,97407.0,97406.0,0.0420531]
[1733080046784,0.00232183,97407.0,97406.0,0.0360531]
[1733080047229,0.00232183,97407.0,97406.0,0.0420531]
[1733080047905,0.02532183,97407.0,97406.0,0.0420531]
[1733080048134,0.02532183,97407.0,97406.0,0.04023634]
[1733080049951,0.02532183,97407.0,97406.0,0.03023634]
[1733080050175,0.10212183,97407.0,97406.0,0.04023634]
[1733080050413,0.10212183,97407.0,97406.0,0.035]
[1733080050652,0.10212183,97407.0,97406.0,0.0397363]
[1733080050894,0.10212183,97407.0,97406.0,0.035]
[1733080051111,0.10212183,97407.0,97406.0,0.026]
[1733080051339,0.10212183,97407.0,97406.0,0.033]
[1733080051785,0.10212183,97407.0,97406.0,0.02]
[1733080051996,0.10212183,97407.0,97406.0,0.026]
[1733080052215,0.10212183,97407.0,97406.0,0.02]
[1733080052641,0.10212183,97407.0,97406.0,0.023]
[1733080052863,0.10212183,97407.0,97406.0,0.02]
[1733080053717,0.10212183,97407.0,97406.0,0.023]
[1733080053948,0.02532183,97407.0,97406.0,0.023]
[1733080054206,0.00232183,97407.0,97406.0,0.023]
[1733080054643,0.00232183,97407.0,97406.0,0.02774114]
[1733080055116,0.00232183,97407.0,97406.0,0.02955788]
[1733080055363,0.02532183,97407.0,97406.0,0.02955788]
[1733080055612,0.02532183,97407.0,97406.0,0.02774114]
[1733080055870,0.02532183,97407.0,97406.0,0.01774114]
[1733080056129,0.02532183,97407.0,97406.0,0.02774114]
[1733080057661,0.02532183,97407.0,97406.0,0.02955797]
[1733080057875,0.02532183,97407.0,97406.0,0.02774114]
[1733080060136,0.02532183,97407.0,97406.0,0.023]
[1733080060609,0.02532183,97407.0,97406.0,1.79238393]
[1733080060831,0.02532183,97407.0,97406.0,1.79712853]
[1733080068030,0.02532183,97407.0,97406.0,1.77712853]
[1733080078131,0.02477772,97407.0,97406.0,1.77712853]
[1733080079189,0.03588048,97407.0,97406.0,1.77712853]
[1733080085040,0.03588048,97407.0,97406.0,1.77799113]
[1733080087324,0.03588048,97407.0,97406.0,1.77499113]
[1733080088728,0.41642569,97407.0,97406.0,1.77499113]
[1733080089157,0.44839637,97407.0,97406.0,1.77499113]
[1733080091630,0.44569341,97407.0,97406.0,1.77499113]
[1733080092292,0.44669341,97407.0,97406.0,1.77499113]
[1733080096520,0.44841861,97407.0,97406.0,1.77499113]
[1733080099431,0.36674793,97407.0,97406.0,1.77499113]
[1733080107922,0.39868694,97407.0,97406.0,1.77499113]
[1733080108149,0.44588694,97407.0,97406.0,1.77499113]
[1733080116821,0.44588694,97407.0,97406.0,0.0056072]
[1733080117044,0.44588694,97407.0,97406.0,0.0008626]
[1733080125332,0.44488694,97407.0,97406.0,0.0008626]
[1733080125585,0.44888694,97407.0,97406.0,0.0018626]
[1733080126265,0.44888694,97407.0,97406.0,0.0028626]
[1733080131422,0.228359,97390.0,97389.0,0.0008628]
[1733080131650,0.33120421,97390.0,97389.0,0.0008628]
[1733080132830,0.33520421,97390.0,97389.0,0.0018628]
[1733080140758,0.34612441,97390.0,97389.0,0.0018628]
[1733080141026,0.34612441,97390.0,97389.0,1.0018628]
[1733080141464,0.34612441,97390.0,97389.0,1.0172896]
[1733080143057,0.41373997,97390.0,97389.0,1.0172896]
[1733080143302,0.52810561,97390.0,97389.0,1.0172896]
[1733080149847,0.52810561,97390.0,97389.0,1.01127434]
[1733080160353,0.52810561,97390.0,97389.0,0.98630508]
[1733080163541,0.65280561,97390.0,97389.0,0.98630508]
[1733080164510,0.65280561,97390.0,97389.0,0.92873308]
[1733080164723,0.65280561,97390.0,97389.0,0.93046048]
[1733080167211,0.65280561,97390.0,97389.0,0.91496048]
[1733080167661,0.65280561,97390.0,97389.0,0.79622586]
[1733080169648,0.65280561,97390.0,97389.0,0.7322274]
[1733080170006,0.65280561,97390.0,97389.0,0.6702574]
[1733080170205,0.65280561,97390.0,97389.0,0.64354163]
[1733080170624,0.65280561,97390.0,97389.0,0.56615263]
[1733080171876,0.65280561,97390.0,97389.0,0.46097911]
[1733080172073,0.75093521,97390.0,97389.0,0.44773896]
[1733080172277,0.75093521,97390.0,97389.0,0.4008294]
[1733080172543,0.74693521,97390.0,97389.0,0.3186854]
[1733080172980,0.75593521,97390.0,97389.0,0.3196854]
[1733080173408,0.75593521,97390.0,97389.0,0.2939959]
[1733080173636,0.75593521,97390.0,97389.0,0.2494264]
[1733080173860,0.75593521,97390.0,97389.0,0.1672824]
[1733080174067,0.76393521,97390.0,97389.0,0.13350745]
[1733080174316,0.76393521,97390.0,97380.0,1.71096673]
[1733080174317,0.173,97389.0,97380.0,1.71096673]
[1733080174548,0.56032321,97381.0,97380.0,1.71096673]
[1733080174760,0.59230441,97381.0,97380.0,1.71096673]
[1733080175210,0.59230441,97381.0,97380.0,1.65540373]
[1733080175430,0.59230441,97381.0,97380.0,1.65640373]
[1733080175645,0.59230441,97381.0,97380.0,1.63071229]
[1733080175870,0.59230441,97381.0,97380.0,1.60671229]
[1733080176081,0.65020441,97381.0,97380.0,1.60771229]
[1733080176682,0.65020441,97381.0,97380.0,1.60671229]
[1733080177156,0.65520441,97381.0,97380.0,1.60857619]
[1733080177998,0.65520441,97381.0,97380.0,1.57891871]
[1733080178209,0.65520441,97381.0,97380.0,1.54761871]
[1733080178628,0.65520441,97381.0,97380.0,1.51661871]
[1733080179470,0.65520441,97381.0,97380.0,1.51046871]
[1733080179675,0.65520441,97381.0,97380.0,0.0028639]
[1733080180085,0.75803587,97381.0,97380.0,0.0028639]
[1733080180271,0.60630441,97381.0,97380.0,0.0028639]
[1733080180509,0.378399,97371.0,97370.0,1.49399871]
[1733080180711,0.48124421,97371.0,97370.0,1.49399871]
[1733080180939,0.48124421,97371.0,97370.0,1.50822915]
[1733080181844,0.48136007,97371.0,97370.0,1.50822915]
[1733080182055,0.49236007,97371.0,97370.0,1.50922915]
[1733080182259,0.49236007,97371.0,97370.0,1.50747766]
[1733080182688,0.49236007,97371.0,97370.0,1.50698723]
[1733080184067,0.49236007,97371.0,97370.0,1.50203255]
[1733080184276,0.49236007,97371.0,97370.0,1.55113255]
[1733080184992,0.49236007,97371.0,97370.0,1.54644015]
[1733080185891,0.50325663,97371.0,97370.0,1.54644015]
[1733080186795,0.50325663,97371.0,97370.0,1.62744015]
[1733080190078,0.50325663,97371.0,97370.0,1.62830425]
[1733080190489,0.50498483,97371.0,97370.0,1.62830425]
[1733080193552,0.50498483,97371.0,97370.0,0.14619454]
[1733080193984,0.50498483,97371.0,97370.0,0.1319641]
[1733080195268,0.53692879,97371.0,97370.0,0.1319641]
[1733080196316,0.53692879,97371.0,97370.0,0.0509641]
[1733080200784,0.53692879,97371.0,97370.0,0.0018641]
[1733080201671,0.63373441,97371.0,97370.0,0.0018641]
[1733080202269,0.53692879,97371.0,97370.0,0.0018641]
[1733080214452,0.53692879,97371.0,97370.0,0.01283633]
[1733080221794,0.53692879,97371.0,97370.0,0.00943615]
[1733080227675,0.61462879,97371.0,97370.0,0.00943615]
[1733080227891,0.504512,97365.0,97364.0,1.36594964]
[1733080228098,0.60735721,97365.0,97364.0,1.31894964]
[1733080228774,0.63930117,97365.0,97364.0,1.32589457]
[1733080229206,0.64830117,97365.0,97364.0,1.32689457]
[1733080230729,0.65630117,97365.0,97364.0,1.32789457]
[1733080230947,0.69008306,97365.0,97364.0,1.32789457]
[1733080232712,0.65630117,97365.0,97364.0,1.32789457]
[1733080232930,0.65630117,97365.0,97364.0,0.55586457]
[1733080235627,0.62435721,97365.0,97364.0,0.55586457]
[1733080237060,0.62435721,97365.0,97364.0,0.55672867]
[1733080237271,0.62608541,97365.0,97364.0,0.55672867]
[1733080240577,0.72891687,97365.0,97364.0,0.55672867]
[1733080241036,0.49998541,97365.0,97364.0,0.55672867]
[1733080241477,0.49998541,97365.0,97364.0,0.00980903]
[1733080243189,0.53189187,97365.0,97364.0,0.00980903]
[1733080245626,0.57849187,97365.0,97364.0,0.00980903]
[1733080245850,0.66089187,97365.0,97364.0,0.00980903]
[1733080246265,0.72233678,97365.0,97364.0,0.00980903]
[1733080248403,0.69933678,97365.0,97364.0,0.00980903]
[1733080248634,0.63789187,97365.0,97364.0,0.00980903]
[1733080251593,0.59129187,97365.0,97364.0,0.00980903]
[1733080253220,0.50889187,97365.0,97364.0,0.00980903]
[1733080254146,0.50889187,97365.0,97364.0,0.55672867]
[1733080255780,0.35889187,97365.0,97364.0,0.62872867]
[1733080256009,0.32698541,97365.0,97364.0,0.71192867]
[1733080256969,0.31898541,97365.0,97364.0,0.71092867]
[1733080257185,0.32698541,97365.0,97364.0,0.71192867]
[1733080257420,0.12157341,97365.0,97364.0,0.71192867]
[1733080257657,0.0097282,97365.0,97364.0,0.71092867]
[1733080257889,0.0097282,97365.0,97364.0,0.72092867]
[1733080258373,0.0017282,97365.0,97364.0,0.71992867]
[1733080258589,0.0077282,97365.0,97364.0,0.71992867]
[1733080259024,0.0107282,97365.0,97364.0,0.72092867]
[1733080259472,0.0107282,97365.0,97364.0,0.71992867]
[1733080259473,0.0047282,97365.0,97364.0,0.71992867]
[1733080260960,0.0087282,97365.0,97364.0,0.71992867]
[1733080271008,0.11157341,97365.0,97364.0,0.55472867]
[1733080272089,0.12227713,97365.0,97364.0,0.55472867]
[1733080272317,0.12227713,97365.0,97364.0,0.57772867]
[1733080272739,0.11157341,97365.0,97364.0,0.57772867]
[1733080278941,0.11157341,97365.0,97364.0,0.55472867]
[1733080280222,0.10857341,97365.0,97364.0,0.55472867]
[1733080280429,0.10457341,97365.0,97364.0,0.55472867]
[1733080280653,0.11257341,97365.0,97364.0,0.55572867]
[1733080280820,0.12157341,97365.0,97364.0,0.55572867]
[1733080281040,0.11357341,97365.0,97364.0,0.55472867]
[1733080281400,0.11257341,97365.0,97364.0,0.55572867]
[1733080281817,0.11357341,97365.0,97364.0,0.55472867]
[1733080282236,0.12157341,97365.0,97364.0,0.55572867]
[1733080286406,0.12157341,97365.0,97364.0,0.62612867]
[1733080287862,0.12157341,97365.0,97364.0,0.57872867]
[1733080291043,0.12157341,97365.0,97364.0,0.55572867]
[1733080294391,0.15349312,97365.0,97364.0,0.55572867]
[1733080294612,0.30349312,97365.0,97364.0,0.55572867]
[1733080295227,0.35029312,97365.0,97364.0,0.55572867]
[1733080296972,0.30349312,97365.0,97364.0,0.55572867]
[1733080300768,0.38619312,97365.0,97364.0,0.55572867]
[1733080300972,0.48902458,97365.0,97364.0,0.55572867]
[1733080302075,0.53602458,97365.0,97364.0,0.55572867]
[1733080305422,0.43319312,97365.0,97364.0,0.55572867]
[1733080305647,0.43319312,97365.0,97364.0,0.55541567]
[1733080316180,0.43319312,97365.0,97364.0,0.39171414]
[1733080316850,0.43319312,97365.0,97364.0,0.35063214]
[1733080317255,0.43319312,97365.0,97364.0,0.28900914]
[1733080317466,0.53602458,97365.0,97364.0,0.25400914]
[1733080317676,0.53602458,97365.0,97364.0,0.23346814]
[1733080318097,0.53602458,97365.0,97364.0,0.20534138]
[1733080318298,0.53602458,97365.0,97364.0,0.16425938]
[1733080318497,0.53602458,97365.0,97364.0,0.14371838]
[1733080318734,0.53602458,97365.0,97364.0,0.12317738]
[1733080318940,0.53602458,97365.0,97364.0,0.10263638]
[1733080319155,0.53602458,97365.0,97364.0,0.08209538]
[1733080319363,0.53602458,97365.0,97364.0,0.06155438]
[1733080319597,0.53602458,97365.0,97364.0,0.04187718]
[1733080319823,0.43319312,97365.0,97364.0,0.04187718]
[1733080320037,0.38619312,97365.0,97364.0,0.04187718]
[1733080324242,0.38619312,97365.0,97364.0,0.01811742]
[1733080332809,0.38619312,97365.0,97364.0,1e-08]
[1733080333030,0.38619312,97365.0,97346.0,0.0457]
[1733080333031,0.15,97364.0,97346.0,0.0457]
[1733080333264,0.35545,97347.0,97346.0,0.0457]
[1733080333487,0.49021492,97347.0,97346.0,0.0457]
[1733080334613,0.49521492,97347.0,97346.0,0.0457]
[1733080335267,0.49521492,97347.0,97346.0,0.0467]
[1733080335672,0.49521492,97347.0,97346.0,0.0457]
[1733080336092,0.49821492,97347.0,97346.0,0.0457]
[1733080338156,0.49821492,97347.0,97346.0,0.1253]
[1733080341249,0.205471,97337.0,97336.0,0.128]
[1733080341483,0.30831621,97337.0,97336.0,0.128]
[1733080342587,0.30937555,97337.0,97336.0,0.128]
[1733080346385,0.34133342,97337.0,97336.0,0.128]
[1733080351654,0.35237766,97337.0,97336.0,0.128]
[1733080352786,0.35237766,97337.0,97336.0,0.1288638]
[1733080353200,0.35237766,97337.0,97336.0,0.13646878]
[1733080357621,0.13586242,97337.0,97336.0,0.13646878]
[1733080357838,0.00105934,97337.0,97336.0,0.16946878]
[1733080367944,0.00105934,97337.0,97336.0,0.17946878]
[1733080369835,0.00105934,97337.0,97336.0,0.16946878]
[1733080370067,0.00105934,97337.0,97336.0,0.17946878]
[1733080373971,0.00105934,97337.0,97336.0,0.15646878]
[1733080377735,0.00105934,97337.0,97336.0,0.181287]
[1733080384995,0.00105934,97337.0,97336.0,0.28413178]
[1733080385251,0.00105934,97337.0,97336.0,0.29231399]
[1733080385712,5.934e-05,97337.0,97336.0,0.29231399]
[1733080386179,0.00205934,97337.0,97336.0,0.29631399]
[1733080386641,5.934e-05,97337.0,97336.0,0.29231399]
[1733080386887,0.00105934,97337.0,97336.0,0.30031399]
[1733080387127,0.00105934,97337.0,97336.0,0.29631399]
[1733080388111,0.00205934,97337.0,97336.0,0.30031399]
[1733080389780,0.00205934,97337.0,97336.0,0.15446878]
[1733080390001,0.00205934,97337.0,97336.0,0.15628681]
[1733080390267,0.00205934,97337.0,97336.0,0.16628681]
[1733080390727,5.934e-05,97337.0,97336.0,0.16228681]
[1733080391214,5.934e-05,97337.0,97336.0,0.17228681]
[1733080391459,5.934e-05,97337.0,97336.0,0.09086878]
[1733080392382,5.934e-05,97337.0,97336.0,0.08986878]
[1733080392638,0.00105934,97337.0,97336.0,0.09086878]
[1733080392874,0.20653034,97337.0,97336.0,0.00846878]
[1733080393112,0.20553034,97337.0,97336.0,0.0108638]
[1733080394307,0.20653034,97337.0,97336.0,0.0108638]
[1733080394557,0.20653034,97337.0,97336.0,0.0008638]
[1733080396323,0.20653034,97337.0,97336.0,0.0108638]
[1733080396983,0.20653034,97337.0,97336.0,0.0008638]
[1733080397226,0.20653034,97337.0,97336.0,0.0108638]
[1733080398365,0.20653034,97337.0,97336.0,0.0008638]
[1733080398580,0.20653034,97337.0,97336.0,0.0108638]
[1733080398789,0.20653034,97337.0,97336.0,0.0008638]
[1733080400758,0.205484,97331.0,97328.0,0.00441565]
[1733080402060,0.205484,97331.0,97328.0,0.00541565]
[1733080402275,0.205484,97331.0,97328.0,0.00841565]
[1733080402702,0.410968,97331.0,97328.0,0.00841565]
[1733080402932,0.410968,97331.0,97328.0,0.00741565]
[1733080403192,0.410968,97331.0,97328.0,0.00541565]
[1733080403434,0.410968,97331.0,97328.0,0.00841565]
[1733080407058,0.410968,97331.0,97328.0,0.00541565]
[1733080407460,0.205488,97329.0,97328.0,0.00441565]
[1733080407670,0.205488,97329.0,97328.0,0.00541565]
[1733080408530,0.205488,97329.0,97328.0,0.00741565]
[1733080408743,0.205488,97329.0,97328.0,0.00541565]
[1733080409169,0.205488,97329.0,97328.0,0.00941565]
[1733080409380,0.205488,97329.0,97328.0,0.01027915]
[1733080412411,0.205488,97329.0,97328.0,0.0058635]
[1733080412412,0.30833321,97329.0,97328.0,0.0058635]
[1733080422199,0.31006081,97329.0,97328.0,0.0058635]
[1733080427791,0.31006081,97329.0,97328.0,0.0046245]
[1733080428483,0.31006081,97329.0,97328.0,0.00345918]
[1733080429609,0.31006081,97329.0,97328.0,0.00339061]
[1733080430260,0.31006081,97329.0,97325.0,0.00079326]
[1733080430261,0.51555081,97329.0,97325.0,0.00079326]
[1733080430476,0.10284521,97328.0,97325.0,0.00079326]
[1733080430662,0.205492,97327.0,97325.0,0.00079326]
[1733080430860,0.00017239,97325.0,97324.0,0.0008632]
[1733080432635,0.00117239,97325.0,97324.0,0.0028632]
[1733080434211,0.00117239,97325.0,97324.0,0.0048632]
[1733080436242,0.001,97325.0,97324.0,0.00270236]
[1733080438470,0.0787,97325.0,97324.0,0.00270236]
[1733080440473,0.001,97325.0,97324.0,0.00270236]
[1733080444039,0.001,97325.0,97324.0,0.01161533]
[1733080444752,0.001,97325.0,97324.0,0.00270236]
[1733080447160,0.001,97325.0,97324.0,0.00356626]
[1733080447593,0.0027278,97325.0,97324.0,0.00356626]
[1733080462837,0.0027278,97325.0,97324.0,0.07778478]
[1733080463050,0.0027278,97325.0,97324.0,0.08503192]
[1733080463969,0.0027278,97325.0,97324.0,0.08685028]
[1733080467178,0.0027278,97325.0,97324.0,0.08503192]
[1733080476481,0.0027278,97325.0,97324.0,0.01263192]
[1733080476920,0.0027278,97325.0,97324.0,0.00356626]
[1733080478746,0.0027278,97325.0,97324.0,0.00057797]
[1733080479177,0.00197816,97324.0,97323.0,0.0008632]
[1733080480714,0.00297816,97324.0,97323.0,0.0028632]
[1733080485334,0.001,97324.0,97323.0,0.00088504]
[1733080494105,0.001,97324.0,97323.0,0.00174894]
[1733080494302,0.0027278,97324.0,97323.0,0.00174894]
[1733080494731,0.23717301,97324.0,97323.0,0.00174894]
[1733080495429,0.26913765,97324.0,97323.0,0.00174894]
[1733080495672,0.26913765,97324.0,97323.0,0.0008639]
[1733080496088,0.27113765,97324.0,97323.0,0.0008639]
[1733080496520,0.26913765,97324.0,97323.0,0.0008639]
[1733080496970,0.27113765,97324.0,97323.0,0.0008639]
[1733080497600,0.27013765,97324.0,97323.0,0.0008639]
[1733080497819,0.27113765,97324.0,97323.0,0.0008639]
[1733080498202,0.29129114,97324.0,97323.0,0.0008639]
[1733080498366,0.2593265,97324.0,97323.0,0.0008639]
[1733080501826,0.18947301,97324.0,97323.0,0.0008639]
[1733080502082,0.20045684,97324.0,97323.0,0.0008639]
[1733080506215,0.20014884,97324.0,97323.0,0.0008639]
[1733080515365,0.11824884,97324.0,97323.0,0.0008639]
[1733080515572,0.10726501,97324.0,97323.0,0.0008639]
[1733080528402,0.13921652,97324.0,97323.0,0.0008639]
[1733080529090,0.10726501,97324.0,97323.0,0.0008639]
[1733080529321,0.13921791,97324.0,97323.0,0.0008639]
[1733080540039,0.0363727,97324.0,97323.0,0.0008639]
[1733080540239,0.0044198,97324.0,97323.0,0.0482639]
[1733080540655,0.0044198,97324.0,97323.0,0.0564522]
[1733080544831,0.00416282,97324.0,97323.0,0.0564522]
[1733080545979,0.00416282,97324.0,97323.0,0.0561352]
[1733080566856,0.00416282,97324.0,97323.0,0.05400597]
[1733080569261,0.00416282,97324.0,97323.0,0.05571983]
[1733080570169,0.00416282,97324.0,97323.0,0.0479469]
[1733080571824,0.00416282,97324.0,97323.0,0.05572035]
[1733080572991,0.00384022,97324.0,97323.0,0.0479469]
[1733080573664,0.00384022,97324.0,97323.0,0.05572035]
[1733080576123,0.00300743,97324.0,97323.0,0.13703885]
[1733080578638,0.00300743,97324.0,97323.0,0.13948054]
[1733080581365,0.00300743,97324.0,97323.0,0.13456335]
[1733080582278,0.00300743,97324.0,97323.0,0.13638169]
[1733080584974,0.00300743,97324.0,97323.0,0.2392269]
[1733080585211,0.00300743,97324.0,97323.0,0.24740856]
[1733080585419,2e-08,97337.0,97336.0,0.333573]
[1733080585877,2e-08,97337.0,97336.0,0.34066461]
[1733080586731,0.00200002,97337.0,97336.0,0.34066461]
[1733080586954,0.00100002,97337.0,97336.0,0.34066461]
[1733080587457,0.00200002,97337.0,97336.0,0.34066461]
[1733080588774,0.00100002,97337.0,97336.0,0.34066461]
[1733080589258,2e-08,97337.0,97336.0,0.34066461]
[1733080589765,2e-08,97337.0,97336.0,0.13619161]
[1733080589973,2e-08,97337.0,97336.0,0.05749161]
[1733080590187,2e-08,97337.0,97336.0,0.05649161]
[1733080590391,2e-08,97337.0,97336.0,0.05749161]
[1733080590871,0.00100002,97337.0,97336.0,0.05649161]
[1733080592237,0.00200002,97337.0,97336.0,0.05649161]
[1733080594585,0.00200002,97337.0,97336.0,0.05649161]
[1733080597686,0.00200002,97337.0,97336.0,0.05830968]
[1733080598120,0.00200002,97337.0,97336.0,0.05649161]
[1733080598342,0.00200002,97337.0,97336.0,0.05821901]
[1733080598523,0.00286372,97337.0,97336.0,0.05821901]
[1733080600495,0.00286372,97337.0,97336.0,0.06003709]
[1733080604889,0.00286372,97337.0,97336.0,0.05821901]
[1733080613525,0.00286372,97337.0,97336.0,0.06003712]
[1733080615997,0.00286372,97337.0,97336.0,0.05821901]
[1733080618606,0.00286372,97337.0,97336.0,0.00881901]
[1733080619966,0.00286372,97337.0,97336.0,0.01063712]
[1733080621751,0.00286372,97337.0,97336.0,0.00881901]
[1733080621952,0.08426372,97337.0,97336.0,0.00881901]
[1733080622368,0.08426372,97337.0,97336.0,0.0017274]
[1733080624345,0.21010893,97337.0,97336.0,0.0017274]
[1733080624771,0.25287247,97337.0,97336.0,0.0017274]
[1733080624974,0.22089301,97337.0,97336.0,0.0017274]
[1733080625689,0.21989301,97337.0,97336.0,0.0017274]
[1733080626595,0.21889301,97337.0,97336.0,0.0017274]
[1733080626837,0.22289301,97337.0,97336.0,0.0017274]
[1733080627262,0.23089301,97337.0,97336.0,0.0017274]
[1733080628286,0.205475,97335.0,97302.0,0.296243]
[1733080628515,0.023,97328.0,97310.0,0.205527]
[1733080628709,0.12584521,97328.0,97311.0,0.00832701]
[1733080628912,0.12584521,97328.0,97312.0,0.411047]
[1733080629119,0.12584521,97328.0,97313.0,0.00832375]
[1733080629323,0.12584521,97328.0,97314.0,0.0018186]
[1733080629544,0.12584521,97328.0,97312.0,0.205524]
[1733080629752,0.12884521,97328.0,97313.0,0.01014235]
[1733080629953,0.12584521,97328.0,97313.0,0.01014235]
[1733080630414,0.12884521,97328.0,97313.0,0.01014235]
[1733080630635,0.13084521,97328.0,97313.0,0.01014235]
[1733080630992,0.12884521,97328.0,97313.0,0.01014235]
[1733080631398,0.13084521,97328.0,97313.0,0.01014235]
[1733080631733,0.13084521,97328.0,97313.0,0.00832375]
[1733080631929,0.13084521,97328.0,97309.0,0.00181861]
[1733080632112,0.13084521,97328.0,97310.0,0.21385663]
[1733080632313,0.13084521,97328.0,97310.0,0.21567524]
[1733080632879,0.12884521,97328.0,97310.0,0.21567524]
[1733080633039,0.12884521,97328.0,97311.0,0.00181861]
[1733080633274,0.12784521,97328.0,97313.0,0.0017274]
[1733080633448,0.13084521,97328.0,97313.0,0.0017274]
[1733080633658,0.12884521,97328.0,97314.0,0.00832213]
[1733080633863,0.12884521,97328.0,97315.0,0.205518]
[1733080634070,0.005,97328.0,97316.0,0.41103]
[1733080634291,0.005,97328.0,97318.0,0.0499]
[1733080634481,0.003,97328.0,97319.0,0.00181849]
[1733080634684,0.023,97336.0,97320.0,0.205507]
[1733080634840,0.023,97334.0,97321.0,0.41101]
[1733080635045,0.003,97328.0,97322.0,0.00181848]
[1733080635273,0.023,97334.0,97323.0,0.21588604]
[1733080635675,0.003,97328.0,97323.0,0.21588604]
[1733080635955,0.002,97328.0,97323.0,0.21588604]
[1733080636184,0.002,97328.0,97323.0,0.01038504]
[1733080636397,0.003,97328.0,97323.0,0.01038504]
[1733080636607,0.026,97334.0,97323.0,0.01038504]
[1733080637035,0.0930478,97337.0,97324.0,0.205499]
[1733080637534,0.002,97328.0,97325.0,0.00856331]
[1733080637997,0.005,97328.0,97325.0,0.00856331]
[1733080638234,0.002,97328.0,97325.0,0.00856331]
[1733080638456,0.09088991,97337.0,97325.0,0.00856331]
[1733080638666,0.09888991,97337.0,97325.0,0.00856331]
[1733080638874,0.09088991,97337.0,97325.0,0.00856331]
[1733080639106,0.003,97328.0,97324.0,0.205499]
[1733080639320,0.003,97328.0,97321.0,0.205503]
[1733080639549,0.09088991,97337.0,97321.0,0.205503]
[1733080639764,0.09888991,97337.0,97322.0,0.00856819]
[1733080639971,0.10288991,97337.0,97322.0,0.00856819]
[1733080640410,0.205473,97336.0,97322.0,0.00856819]
[1733080640624,0.09888991,97337.0,97322.0,0.00856819]
[1733080640890,0.10288991,97337.0,97323.0,0.205501]
[1733080641108,0.10288991,97337.0,97323.0,0.21409423]
[1733080641320,0.09488991,97337.0,97323.0,0.21409423]
[1733080641505,0.003,97328.0,97323.0,0.21409423]
[1733080641755,0.09488991,97337.0,97323.0,0.21409423]
[1733080641963,0.09088991,97337.0,97323.0,0.21409423]
[1733080642247,0.09888991,97337.0,97323.0,0.21409423]
[1733080642461,0.09488991,97337.0,97323.0,0.21409423]
[1733080642670,0.003,97328.0,97323.0,0.21409423]
[1733080642880,0.09088991,97337.0,97323.0,0.21409423]
[1733080643089,0.09488991,97337.0,97323.0,0.21409423]
[1733080643290,0.10288991,97337.0,97323.0,0.21409423]
[1733080643571,0.09888991,97337.0,97323.0,0.21409423]
[1733080643823,0.001,97328.0,97323.0,0.21409423]
[1733080644464,0.001,97328.0,97323.0,0.21582163]
[1733080644705,0.004,97328.0,97323.0,0.21582163]
[1733080645133,0.003,97328.0,97323.0,0.21582163]
[1733080646261,0.005,97328.0,97323.0,0.21582163]
[1733080647383,0.005,97328.0,97323.0,0.01032063]
[1733080647792,0.005,97328.0,97324.0,0.205499]
[1733080648214,0.005,97328.0,97325.0,0.00882681]
[1733080648920,0.003,97328.0,97323.0,0.0017274]
[1733080649121,0.09175361,97337.0,97326.0,0.00899458]
[1733080649327,0.005,97328.0,97323.0,0.0017274]
[1733080649767,0.003,97328.0,97324.0,0.0055215]
[1733080650192,0.005,97328.0,97324.0,0.0055215]
[1733080650610,0.002,97328.0,97324.0,0.0055215]
[1733080650817,0.005,97328.0,97324.0,0.0055215]
[1733080651025,0.002,97328.0,97324.0,0.0055215]
[1733080651433,0.003,97328.0,97324.0,0.0055215]
[1733080651637,0.005,97328.0,97324.0,0.0055215]
[1733080652467,0.005,97328.0,97325.0,0.205497]
[1733080652868,0.005,97328.0,97326.0,0.00551955]
[1733080653764,0.002,97328.0,97324.0,0.205499]
[1733080654215,0.005,97328.0,97325.0,0.00689407]